[Event "Hungarian Championship Men 2022"]
[Site "Budapest"]
[Date "2022.12.08"]
[Round "4.2"]
[White "Horvath, Adam"]
[Black "Prohaszka, Peter"]
[Result "0-1"]
[ECO "C50"]
[WhiteElo "2501"]
[BlackElo "2562"]
[Annotator "TA"]
[PlyCount "80"]
[EventDate "2022.12.03"]
[EventType "tourn"]
[EventCountry "HUN"]
[SourceTitle "playchess.com"]
[Source "ChessBase"]
[SourceQuality "1"]
[TimeControl "40/5400+30:1800+30"]

{[%evp 10,80,16,13,10,12,34,16,17,0,0,0,0,0,0,-39,-43,-35,-43,-37,-45,-133,-70,-125,-118,-118,-106,-135,-133,-219,-193,-190,-150,-264,-263,-232,-63,-60,-61,-73,-65,-69,-64,-62,-68,-174,-178,-495,-493,-472,-443,-738,-505,-518,-515,-510,-516,-503,-496,-567,-523,-517,-486,-746,-733,-29968,-29967,-6187,-6179,-29991,-29986,-29986,-29981]} 1. e4 {[%emt 0:00:34]} e5 {[%emt 0:01:11]} 2. Nf3 {[%emt 0:00:05]} Nc6 {[%emt 0:00:05]} 3. Bc4 {[%emt 0:00:05]} Bc5 {[%emt 0:00:25]} 4. d3 {[%emt 0:01:31]} Nf6 {[%emt 0:00:40]} 5. O-O {[%emt 0:00:18]} d6 {[%emt 0:00:34]} 6. c3 {[%emt 0:00:47]} a5 {[%emt 0:00:19] C54: Giuoco Piano: 4 c3 Nf6, main lines with 5 d4 and 5 d3.} 7. Re1 {[%emt 0:05:36]} Ba7 {[%emt 0:00:42]} 8. h3 {[%emt 0:04:29]} h6 {[%emt 0:00:16] [#] The position is equal.} 9. Bb3 $146 {[%emt 0:07:56]} ({Predecessor:} 9. d4 O-O 10. Be3 Re8 11. Qb3 Qe7 12. Nbd2 Bd7 13. Rad1 a4 14. Qc2 Na5 15. Bd3 {0-1 (59) Amin,B (2680)-Kamsky,G (2657) Europe Echecs INT 2021}) 9... g5 {[%emt 0:03:12]} 10. d4 {[%emt 0:29:32]} g4 {[%emt 0:12:39]} 11. hxg4 {[%emt 0:00:03]} Nxg4 {[%emt 0:12:10]} 12. Na3 {[%emt 0:05:07]} Rg8 {[%emt 0:05:46]} 13. Nb5 {[%emt 0:06:12]} Bb6 {[%emt 0:01:00]} 14. Be3 {[%emt 0:01:14]} Bd7 {[%emt 0:16:20]} 15. Bc4 {[%emt 0:16:17]} ({White should play} 15. Na3 $15) 15... Qe7 {[%emt 0:08:30]} (15... Qf6 $17 16. dxe5 Ngxe5 17. Nxe5 Nxe5 18. Bxb6 O-O-O 19. Nxd6+ (19. Nxc7 $2 Rxg2+ 20. Kxg2 Rg8+ 21. Kf1 Bh3+ 22. Ke2 Bg4+ 23. Kd2 Nxc4+ 24. Kd3 Nxb2+ 25. Kc2 Nxd1 $19) 19... Kb8 20. Nxf7 (20. Bxa5 $2 Rxg2+ 21. Kxg2 Qg5+ 22. Kf1 Bh3+ 23. Ke2 Rxd6 $19) 20... Nf3+ 21. Kf1 Rxg2 $1) 16. a3 {[%emt 0:02:20]} (16. Bd5 $15) 16... Nd8 $17 {[%emt 0:07:11]} 17. a4 {[%emt 0:02:55]} Ne6 {[%emt 0:10:52]} 18. Bf1 {[%emt 0:00:10]} Nxe3 {[%emt 0:02:16]} 19. fxe3 {[%emt 0:01:45]} (19. Rxe3 $17 Ng5 20. Be2) 19... Ng5 {[%emt 0:01:24]} 20. Nxg5 {[%emt 0:01:35]} Qxg5 {[%emt 0:01:08]} 21. c4 {[%emt 0:02:47]} (21. Qb3 $17 {keeps fighting.} Ke7 22. Na3 (22. Nxd6 $2 Kxd6 23. Qa3+ c5 $19)) 21... O-O-O {[%emt 0:07:24][%cal Be8c8,Bc8b8,Bb8a7][%mdl 32]} 22. b4 {[%emt 0:00:31]} Bc6 $2 {[%emt 0:00:59]} (22... axb4 23. a5 Bxb5 24. cxb5 $16) ({Better is} 22... exd4 $19 23. exd4 Bxb5 24. axb5 axb4) 23. Qf3 $15 {[%emt 0:04:51] c5 is the strong threat.} (23. c5 $2 dxc5 24. bxa5 Bxe4 $19) 23... exd4 {[%emt 0:03:31] Hoping for ...Rde8.} (23... axb4 24. a5 Bxd4 25. exd4 $16) 24. bxa5 $1 {[%emt 0:04:28]} Bxa5 {[%emt 0:01:04]} 25. Na7+ {[%emt 0:00:09]} Kb8 {[%emt 0:01:15] Black has more active pieces.} 26. Nxc6+ {[%emt 0:00:04]} bxc6 {[%emt 0:00:02]} 27. Rab1+ {[%emt 0:02:02]} (27. Reb1+ $15 Ka7 28. exd4) 27... Ka7 $19 {[%emt 0:00:24]} 28. e5 $2 {[%emt 0:00:17]} (28. Re2) 28... Bxe1 {[%emt 0:00:28]} (28... dxe5 29. Qxc6 Rb8 30. Qc5+ (30. c5 Qg6 $17) 30... Ka6 31. Qc6+ Ka7 32. Qc5+ (32. c5 $2 Qg6 $19) 32... Ka6 33. Qc6+ Ka7 $11) 29. Rxe1 {[%emt 0:00:41]} Qxe5 {[%emt 0:00:44]} 30. c5 {[%emt 0:00:30]} (30. Qxc6 $142 Qc5 31. Qf3) 30... Qxc5 {[%emt 0:01:42]} 31. Qe2 {[%emt 0:00:34] Intending Qa6+ and mate.} Qa5 {[%emt 0:00:20] Against Qa6+} 32. Rc1 {[%emt 0:00:05]} d3 {[%emt 0:01:19]} 33. Qxd3 {[%emt 0:00:11]} c5 {[%emt 0:00:05]} (33... Qxa4 34. Rc3 Kb7 35. Ra3 $16) 34. Qf5 {[%emt 0:00:48]} Rge8 {[%emt 0:00:50]} (34... Qxa4 35. Qf6 Kb6 36. Bc4 $15) 35. Qxf7 {[%emt 0:00:32]} Rb8 {[%emt 0:00:18]} (35... Qxa4 {leads to mate.} 36. Qxc7+ Ka8 {[#]} 37. Bb5 $1 {[%mdl 512]} Re4 38. Bxa4 Rxa4 39. Rb1 Rb4 40. Ra1+) 36. Qf4 {[%emt 0:00:55]} (36. Rd1 $142 Qb6 37. a5) 36... Qd2 {[%emt 0:00:43][%csl LRc1,LRe3] ( -> ...Rf8)} 37. Qc4 {[%emt 0:00:03]} Qxe3+ {[%emt 0:00:34]} ({Much less strong is} 37... Rxe3 38. Qa6#) 38. Kh1 {[%emt 0:00:04]} Rb4 {[%emt 0:00:05]} 39. Qa6+ {[%emt 0:00:30]} Kb8 {[%emt 0:00:01][%cal Rb4h4]} 40. Rc4 {[%emt 0:00:00]} Re4 {[%emt 0:00:00] Weighted Error Value: White=0.57/Black=0.28 (precise)} 0-1

[Event "Hungarian Championship Men 2022"]
[Site "Budapest"]
[Date "2022.12.08"]
[Round "4.3"]
[White "Nagy, Gabor"]
[Black "Grigoriants, Sergey"]
[Result "1/2-1/2"]
[ECO "D45"]
[WhiteElo "2482"]
[BlackElo "2550"]
[Annotator "TA"]
[PlyCount "61"]
[EventDate "2022.12.03"]
[EventType "tourn"]
[EventCountry "HUN"]
[SourceTitle "playchess.com"]
[Source "ChessBase"]
[SourceQuality "1"]
[TimeControl "40/5400+30:1800+30"]

{[%evp 23,61,35,35,0,2,2,8,7,4,7,6,0,16,0,0,0,0,0,0,0,0,0,0,0,0,0,0,0,0,0,0,0,0,0,0,0,0,0,0,-10]} 1. d4 {[%emt 0:00:51]} Nf6 {[%emt 0:00:56]} 2. c4 {[%emt 0:00:16]} e6 {[%emt 0:03:14]} 3. Nf3 {[%emt 0:02:30]} d5 {[%emt 0:03:22]} 4. Nc3 {[%emt 0:00:22]} c6 {[%emt 0:01:43]} 5. e3 {[%emt 0:00:24]} Nbd7 {[%emt 0:00:17]} 6. Qc2 {[%emt 0:00:30]} Bd6 {[%emt 0:00:24]} 7. Bd3 {[%emt 0:00:34]} O-O {[%emt 0:01:47]} 8. O-O {[%emt 0:00:10]} e5 {[%emt 0:01:51]} 9. cxd5 {[%emt 0:03:05]} cxd5 {[%emt 0:00:16]} 10. e4 {[%emt 0:07:16]} dxe4 {[%emt 0:00:56]} 11. Nxe4 {[%emt 0:00:24]} Nxe4 {[%emt 0:00:07]} 12. Bxe4 {[%emt 0:00:12]} h6 {[%emt 0:00:04]} 13. Rd1 {[%emt 0:05:14] [#] And now dxe5 would win. D46: Semi-Slav: 5 e3 Nbd7 6 Bd3, Black avoids the Meran.} exd4 {[%emt 0:00:47] The position is equal.} 14. Rxd4 {[%emt 0:05:31]} Qe7 {[%emt 0:19:47]} 15. Bd2 {[%emt 0:09:17] Strongly threatening Bh7+.} Nf6 {[%emt 0:26:01] Prevents Bh7+.} 16. Bf5 {[%emt 0:02:07] [#]} Qc7 $146 {[%emt 0:08:39]} ({Predecessor:} 16... Bxf5 17. Qxf5 Rad8 18. Bxh6 Bxh2+ 19. Kxh2 Rxd4 20. Nxd4 gxh6 21. Qf4 Nd5 22. Qxh6 Qe5+ {1-0 (78) Zhou,W (2593)-Jia,H (2349) Lishui 2009}) 17. Bc3 {[%emt 0:06:10]} Rd8 {[%emt 0:01:44]} 18. Rad1 {[%emt 0:02:24]} (18. h3 {looks sharper.} Bxf5 19. Qxf5 Qc5 20. Nh4) 18... Bxf5 {[%emt 0:02:58]} 19. Qxf5 {[%emt 0:00:14]} Be7 {[%emt 0:00:05]} 20. h3 {[%emt 0:03:38]} Rxd4 {[%emt 0:01:32]} 21. Rxd4 {[%emt 0:00:22]} Rd8 {[%emt 0:00:48]} 22. Qd3 {[%emt 0:00:31]} a6 {[%emt 0:02:20]} 23. Rxd8+ {[%emt 0:04:24]} Qxd8 {[%emt 0:00:12]} 24. Qxd8+ {[%emt 0:00:16]} Bxd8 $11 {[%emt 0:00:04][%mdl 4096] Endgame KBN-KBN} 25. Kf1 {[%emt 0:00:11]} Nd5 {[%emt 0:00:38]} 26. Bd4 {[%emt 0:00:09]} f6 {[%emt 0:04:25]} 27. g3 {[%emt 0:00:11]} Nb4 {[%emt 0:00:29]} 28. a3 {[%emt 0:00:17]} Nc6 {[%emt 0:00:04]} 29. Bc3 {[%emt 0:00:08]} Kf7 {[%emt 0:00:08]} 30. Ke2 {[%emt 0:00:07]} Ke6 {[%emt 0:00:58]} 31. Nh4 {[%emt 0:00:48] An interesting draw.   Weighted Error Value: White=0.03 (flawless) /Black=0.01 (flawless)} 1/2-1/2

[Event "Hungarian Championship Men 2022"]
[Site "Budapest"]
[Date "2022.12.08"]
[Round "4.4"]
[White "Berkes, Ferenc"]
[Black "Korpa, Bence"]
[Result "1-0"]
[ECO "A49"]
[WhiteElo "2643"]
[BlackElo "2500"]
[Annotator "TA"]
[PlyCount "118"]
[EventDate "2022.12.03"]
[EventType "tourn"]
[EventCountry "HUN"]
[SourceTitle "playchess.com"]
[Source "ChessBase"]
[SourceQuality "1"]
[TimeControl "40/5400+30:1800+30"]

{[%evp 15,118,16,19,0,27,27,61,46,52,46,51,52,68,64,74,56,67,64,63,48,48,47,48,45,63,42,33,44,30,26,59,53,53,40,86,56,107,66,112,40,108,108,112,112,107,109,113,55,93,76,97,88,93,100,93,70,105,100,116,64,63,49,66,8,8,8,8,8,129,129,560,544,518,470,387,364,29959,29960,29961,29962,29962,29963,29963,82,29965,29966,29964,29967,29967,29966,29965,29966,29964,29966,29972,29973,29976,29977,29985,29986,29987,29988,29989,29990,29992]} 1. d4 {[%emt 0:00:33]} Nf6 {[%emt 0:00:45]} 2. Nf3 {[%emt 0:00:25]} g6 {[%emt 0:00:23]} 3. g3 {[%emt 0:00:13]} Bg7 {[%emt 0:00:25]} 4. Bg2 {[%emt 0:00:06]} O-O {[%emt 0:00:54]} 5. O-O {[%emt 0:00:05]} d6 {[%emt 0:00:32]} 6. Re1 {[%emt 0:00:19]} Nbd7 {[%emt 0:03:34]} 7. e4 {[%emt 0:00:42]} e5 {[%emt 0:00:17]} 8. Nc3 {[%emt 0:00:28]} c6 {[%emt 0:06:50]} 9. h3 {B07: Pirc Defence: Miscellaneous Systems.} exd4 {[%emt 0:09:36]} 10. Nxd4 {[%emt 0:19:20]} Nc5 {[%emt 0:00:33]} 11. Nb3 {[%emt 0:03:29] [#] White is slightly better.} Nxb3 $146 {[%emt 0:09:20]} ({Predecessor:} 11... Ne6 12. f4 Nc7 13. Be3 Be6 14. g4 a5 15. f5 Bc4 16. g5 Nh5 17. f6 Nxf6 18. gxf6 Bxf6 {1-0 (33) Rozentalis,E (2577)-Grosse Honebrink,B Berlin 1999}) 12. axb3 {[%emt 0:00:06]} Be6 {[%emt 0:00:41]} 13. Bg5 {[%emt 0:09:46]} h6 {[%emt 0:20:42]} 14. Be3 {[%emt 0:01:33]} Qc7 {[%emt 0:00:15]} 15. Qd2 {[%emt 0:00:41]} (15. Rxa7 $2 Rxa7 16. Bxa7 b6 $19) (15. Bxa7 $2 b6 16. Ne2 (16. e5 $2 dxe5 $19) 16... Rxa7 $19) 15... Kh7 {[%emt 0:00:19]} 16. Bd4 {[%emt 0:09:35]} (16. Rxa7 $2 Rxa7 17. Bxa7 b6 $19) (16. Bxa7 $2 b6 17. Qd4 (17. e5 $2 dxe5 $19) 17... Rxa7 $19) 16... Rfd8 {[%emt 0:05:17]} 17. Qf4 {[%emt 0:06:44] White is much more active.} (17. Rxa7 $2 {too greedy.} Rxa7 18. Bxa7 b6 19. Bxb6 (19. Ra1 $2 Ra8 $19) 19... Qxb6 $19) 17... Nh5 {[%emt 0:04:28][%csl LRd4,LRf4]} 18. Qe3 {[%emt 0:00:22]} Bxd4 {[%emt 0:01:13]} 19. Qxd4 {[%emt 0:00:06]} Qb6 {[%emt 0:00:22]} 20. Ne2 {[%emt 0:09:44]} Qxd4 {[%emt 0:03:15]} 21. Nxd4 {[%emt 0:00:05]} Kg7 {[%emt 0:04:48]} 22. Re3 {[%emt 0:02:54]} Kf6 {[%emt 0:10:37]} 23. b4 {[%emt 0:04:40]} a6 {[%emt 0:03:27] Against b5} 24. f4 {[%emt 0:03:44][%cal Of4f5]} Ng7 {[%emt 0:04:34]} (24... Re8 $14) 25. c3 {[%emt 0:01:58]} Ke7 {[%emt 0:03:13]} (25... d5 $14) 26. g4 {[%emt 0:05:12]} g5 {[%emt 0:04:47]} (26... f6 $14) 27. Rf1 {[%emt 0:10:10]} (27. f5 $16) 27... c5 {[%emt 0:02:00]} ({Better is} 27... Bc4 $14) 28. Nf5+ $16 {[%emt 0:03:01]} Bxf5 {[%emt 0:00:06]} 29. exf5+ {[%emt 0:00:07]} Kf6 {[%emt 0:00:05]} 30. fxg5+ {[%emt 0:00:33]} hxg5 {[%emt 0:00:09]} 31. Rfe1 {[%emt 0:06:06]} ({White should try} 31. Bxb7 $16 Rab8 32. Bd5 (32. Bxa6 cxb4 33. Rd1 bxc3 $16)) 31... Rd7 {[%emt 0:01:40]} 32. Bd5 {[%emt 0:00:15]} cxb4 {[%emt 0:00:12]} 33. cxb4 {[%emt 0:00:05]} Rc8 {[%emt 0:00:45]} 34. Kf2 {[%emt 0:01:59]} Rc2+ {[%emt 0:00:44]} 35. R1e2 {[%emt 0:00:25]} Rxe2+ {[%emt 0:00:29]} 36. Rxe2 $14 {[%emt 0:00:11][%mdl 4096] Endgame KRB-KRN} b6 {[%emt 0:00:25]} 37. Kg3 {[%emt 0:02:02]} ({White should play} 37. Kf3 $16) 37... Re7 $1 {[%emt 0:00:21] Inhibits h4.} 38. Rxe7 {[%emt 0:00:20]} Kxe7 {[%emt 0:00:05] KB-KN} 39. h4 {[%emt 0:00:05]} (39. Bc6 $14) 39... gxh4+ $11 {[%emt 0:00:43]} 40. Kxh4 {[%emt 0:00:00]} f6 {[%emt 0:00:00]} 41. Bc6 {[%emt 0:12:20]} d5 {[%emt 0:13:40]} (41... a5 $11 {remains equal.}) 42. Bxd5 $16 {[%emt 0:00:14] Black is now going downhill.} Kd6 $2 {[%emt 0:00:07][%mdl 8192]} (42... Ne8 $16 43. Kh5 a5 44. bxa5 bxa5) 43. Bf7 $18 {[%emt 0:10:22] Strongly threatening Kg3.} Ke5 {[%emt 0:01:38]} 44. Kg3 {[%emt 0:00:39] aiming for Kf3.} Ke4 {[%emt 0:07:33]} 45. Bc4 {[%emt 0:01:35]} a5 $2 {[%emt 0:02:18]} (45... Ne8 $18 46. Bxa6 Nd6) 46. bxa5 {[%emt 0:00:10]} bxa5 {[%emt 0:00:07]} 47. Bb5 {[%emt 0:00:57]} Ke3 {[%emt 0:02:31]} 48. b3 Ke4 {[%emt 0:00:35]} 49. Ba4 {[%emt 0:01:20] Bb5 would kill now.} Ke3 $2 {[%emt 0:01:31][%mdl 8192] [#]} (49... Kd5 $16 50. Kf4 Kd6) 50. Bc6 {[%emt 0:00:04] White mates.} Kd4 {[%emt 0:00:34]} 51. Kf4 {[%emt 0:00:05]} Kc5 52. Ba4 {[%emt 0:00:47]} Kd6 {[%emt 0:00:46]} 53. Bb5 {[%emt 0:05:48]} Kc5 {[#]} 54. Bd7 $1 Kd5 {[%emt 0:06:27]} 55. g5 {[%emt 0:01:48]} fxg5+ {[%emt 0:00:41]} 56. Kxg5 {[%emt 0:00:05]} Ke5 {[%emt 0:00:17]} 57. f6 {[%emt 0:00:43][%cal Bf5f6,Bf6f7][%mdl 32]} Nh5 {[%emt 0:00:16]} 58. f7 {[%emt 0:01:10]} Nf6 {[%emt 0:00:07]} 59. Bf5 {[%emt 0:00:10]} ({And not} 59. f8=B Nh7+ 60. Kg4 Nxf8 $11) 59... Kd5 {Weighted Error Value: White=0.11 (very precise) /Black=0.45} 1-0

[Event "Hungarian Championship Men 2022"]
[Site "Budapest"]
[Date "2022.12.08"]
[Round "4.5"]
[White "Fodor, Tamas Jr."]
[Black "Papp, Gabor"]
[Result "1/2-1/2"]
[ECO "B51"]
[WhiteElo "2517"]
[BlackElo "2564"]
[Annotator "TA"]
[PlyCount "112"]
[EventDate "2022.12.03"]
[EventType "tourn"]
[EventCountry "HUN"]
[SourceTitle "playchess.com"]
[Source "ChessBase"]
[SourceQuality "1"]
[TimeControl "40/5400+30:1800+30"]

{[%evp 9,112,8,41,28,27,30,30,20,9,0,0,0,0,0,6,0,19,-18,23,32,31,33,33,32,32,0,0,0,0,0,0,0,0,0,0,0,0,0,0,0,0,0,0,0,0,0,0,11,18,0,0,0,15,0,0,0,0,0,0,0,19,20,21,0,0,-6,-4,-4,-4,-4,0,0,0,-18,0,0,0,0,0,0,0,0,0,0,0,0,0,0,0,0,0,-22,0,0,0,0,0,0,0,0,0,0,0,0,0]} 1. e4 {[%emt 0:00:34]} c5 {[%emt 0:00:50]} 2. Nf3 {[%emt 0:00:08]} d6 {[%emt 0:00:26]} 3. Bb5+ {[%emt 0:00:09]} Nd7 {[%emt 0:04:40]} 4. a4 {[%emt 0:00:24]} Ngf6 {[%emt 0:01:13]} 5. Nc3 {[%emt 0:01:08]} g6 {[%emt 0:04:48]} 6. a5 {[%emt 0:01:10] B51: Sicilian: Moscow Variation (3 Bb5+) without 3...Bd7.} Bg7 {[%emt 0:01:42]} 7. O-O {[%emt 0:03:05]} O-O {[%emt 0:00:31]} 8. d3 {[%emt 0:02:06] White has an edge.} Nb8 {[%emt 0:14:24]} 9. Bd2 {[%emt 0:16:42]} a6 {[%emt 0:07:42]} 10. Bc4 {[%emt 0:00:08]} Nc6 {[%emt 0:01:52]} 11. Nd5 {[%emt 0:00:47] [#]} Nd7 $146 {[%emt 0:18:14]} ({Predecessor:} 11... Bg4 12. Nb6 Rb8 13. h3 Bxf3 14. Qxf3 Ne5 15. Qe2 Nfd7 16. Nxd7 Qxd7 17. Ba2 Nc6 {1-0 (67) Mammadova,G (2382)-Casas,A (1921) Europe Echecs INT 2021}) 12. Qc1 {[%emt 0:04:34]} e6 {[%emt 0:00:06]} 13. Bg5 {[%emt 0:16:17]} (13. Ne3 {simplifies} Nd4 14. Nxd4 cxd4 15. Nd1) 13... Nf6 {[%emt 0:04:22]} (13... f6 $5 {[%cal Rf6g5]} 14. Nf4 (14. Bf4 exd5 15. Bxd5+ Kh8 $15) 14... Nde5 15. Nxe6 (15. Bxe6+ Bxe6 16. Nxe5 Qe8 $19) 15... Nxf3+ 16. gxf3 Bxe6 17. Bxe6+ Kh8 $11) 14. Nb6 {[%emt 0:04:57]} Rb8 {[%emt 0:00:27][%cal Oc6a5]} 15. Qd2 {[%emt 0:02:07]} Qc7 {[%emt 0:01:55]} 16. Bb3 {[%emt 0:02:47]} Nd7 {[%emt 0:01:59]} 17. Nxd7 {[%emt 0:00:28]} Bxd7 {[%emt 0:00:27] The position is equal.} 18. Bh6 {[%emt 0:00:06]} Bxb2 {[%emt 0:07:07]} 19. Bxf8 {[%emt 0:00:31]} Rxf8 {[%emt 0:00:03]} 20. Rab1 {[%emt 0:03:07]} Bg7 {[%emt 0:01:56]} 21. Ba4 {[%emt 0:00:21]} Rd8 {[%emt 0:06:04]} 22. Bxc6 {[%emt 0:02:40]} Bxc6 {[%emt 0:00:05]} 23. Rb6 {[%emt 0:04:10]} d5 {[%emt 0:01:05]} 24. Qe3 {[%emt 0:00:32]} dxe4 {[%emt 0:04:22]} 25. dxe4 {[%emt 0:00:22]} Bb5 {[%emt 0:00:05] This pair of bishops is nice.} 26. Rb1 {[%emt 0:01:47]} c4 {[%emt 0:00:54]} 27. g3 {[%emt 0:03:22]} Bf8 {[%emt 0:03:59]} 28. Qg5 {[%emt 0:03:26][%cal Ob6b7] [#] Rxb7! is the strong threat.} Be7 {[%emt 0:03:41]} 29. Qf4 {[%emt 0:02:52]} (29. Qe5 {with more complications.} Bd6 30. Qf6 Be7 31. Qb2) 29... Qxf4 {[%emt 0:01:02]} 30. gxf4 {[%emt 0:00:06]} Rd7 {[%emt 0:01:37]} 31. R6xb5 {[%emt 0:04:48]} (31. Kg2 {is interesting.} Kf8 32. Kg3 Kg7 33. Ne5) 31... axb5 {[%emt 0:00:05]} 32. Rxb5 $11 {[%emt 0:00:05][%mdl 4096] Endgame KRB-KRN} Bd6 {[%emt 0:02:33]} 33. e5 {[%emt 0:00:13]} Be7 {[%emt 0:00:19]} 34. Kf1 {[%emt 0:00:52]} h6 {[%emt 0:00:44]} 35. Ke2 {[%emt 0:00:50]} c3 {[%emt 0:03:12] Inhibits Nd2.} 36. Rb3 {[%emt 0:05:10]} Bd8 {[%emt 0:00:10]} 37. Rxc3 {[%emt 0:00:05]} Bxa5 {[%emt 0:00:20]} 38. Rc8+ {[%emt 0:01:04]} Kg7 {[%emt 0:00:09]} 39. c3 {[%emt 0:00:59][%cal Bc2c3,Bc3c4][%mdl 32]} Rc7 {[%emt 0:02:31]} 40. Rxc7 {[%emt 0:00:00]} Bxc7 {[%emt 0:00:00] KB-KN} 41. h3 {[%emt 0:03:44]} g5 {[%emt 0:06:28]} 42. fxg5 {[%emt 0:02:31]} hxg5 {[%emt 0:00:03]} 43. Nxg5 {[%emt 0:00:43] Black must now prevent f4.} Bxe5 {[%emt 0:00:14]} 44. c4 {[%emt 0:00:28]} Kg6 {[%emt 0:08:31]} 45. Ne4 {[%emt 0:00:36]} Kf5 {[%emt 0:00:23]} 46. Kf3 {[%emt 0:04:26]} Bc7 {[%emt 0:01:40]} 47. h4 {[%emt 0:00:18][%cal Bh3h4,Bh4h5,Bh5h6][%mdl 32] Hoping for c5.} (47. c5 $5 Ke5 $8 48. Ng5 $11) 47... b6 {[%emt 0:03:33]} 48. c5 {[%emt 0:04:33]} bxc5 {[%emt 0:00:19]} 49. Nxc5 {[%emt 0:00:05]} Bd8 {[%emt 0:00:03]} 50. h5 {[%emt 0:00:29]} Kg5 {[%emt 0:00:41]} (50... Bc7 $5 {[%cal Rf5g5]}) 51. Ke4 {[%emt 0:00:12]} Bc7 {[%emt 0:02:50]} 52. f4+ {[%emt 0:00:40]} Bxf4 {[%emt 0:02:07]} 53. h6 {[%emt 0:00:06]} Bc1 {[%emt 0:01:04]} 54. Nxe6+ {[%emt 0:00:05][%mdl 64] [#]} fxe6 {[%emt 0:00:23]} 55. Ke5 {[%emt 0:00:04]} Bb2+ {[%emt 0:00:09]} 56. Kxe6 {[%emt 0:00:04]} Kxh6 {Weighted Error Value: White=0.05 (flawless) /Black=0.04 (flawless)} 1/2-1/2

[Event "Hungarian Championship Men 2022"]
[Site "Budapest"]
[Date "2022.12.09"]
[Round "5.1"]
[White "Papp, Gabor"]
[Black "Kozak, Adam"]
[Result "1/2-1/2"]
[ECO "A05"]
[WhiteElo "2564"]
[BlackElo "2538"]
[Annotator "TA"]
[PlyCount "97"]
[EventDate "2022.12.03"]
[EventType "tourn"]
[EventCountry "HUN"]
[SourceTitle "playchess.com"]
[Source "ChessBase"]
[SourceQuality "1"]
[TimeControl "40/5400+30:1800+30"]

{[%evp 15,97,3,3,0,-6,-42,-29,-53,-34,-40,-33,-39,-8,-11,0,0,0,0,12,0,0,0,0,0,4,0,0,0,0,0,1,11,10,0,10,0,14,0,0,0,0,0,0,0,0,0,5,0,6,6,6,6,6,0,0,6,6,6,6,0,0,0,0,0,6,6,6,0,0,0,6,0,0,0,5,0,2,0,6,12,12,13,13,0]} 1. Nf3 {[%emt 0:00:36]} Nf6 {[%emt 0:06:26]} 2. g3 {[%emt 0:00:27]} b6 {[%emt 0:01:53]} 3. Bg2 {[%emt 0:00:22]} Bb7 {[%emt 0:00:07]} 4. O-O {[%emt 0:01:33]} g6 {[%emt 0:03:06]} 5. b3 {[%emt 0:01:32]} Bg7 {[%emt 0:00:21]} 6. Bb2 {[%emt 0:00:04]} c5 {[%emt 0:01:25]} 7. c4 {[%emt 0:02:07]} O-O {[%emt 0:00:22]} 8. Nc3 {[%emt 0:00:58]} d5 {[%emt 0:02:48]} 9. cxd5 {[%emt 0:01:45] A30: Symmetrical English: Double Fianchetto and Hedgehog.} Nxd5 {[%emt 0:01:03]} 10. Qc2 {[%emt 0:14:51]} Nc6 {[%emt 0:01:51]} 11. Rac1 {[%emt 0:04:23] Black has an edge.} Rc8 {[%emt 0:06:25]} (11... Ndb4 {feels hotter.} 12. Qb1 Nd4 13. Nxd4 Bxg2 14. Ne6 Qd6) 12. Qb1 {[%emt 0:11:05] [#]} Nxc3 $146 {[%emt 0:07:30]} ({Predecessor:} 12... Nc7 13. Rfd1 e5 14. a3 Qe7 15. Ne1 Ne6 16. b4 cxb4 17. axb4 Ncd4 18. e3 Bxg2 19. Kxg2 {½-½ (45) Vokac,M (2410)-Brestian,E (2395) Trnava 1988}) 13. Bxc3 {[%emt 0:03:01]} Qd6 {[%emt 0:03:31]} 14. Qb2 {[%emt 0:13:02] The position is equal.} Bxc3 {[%emt 0:01:37]} (14... Bf6 {is interesting.} 15. Ne5 Rcd8 16. Nxc6 Bxc6 17. Bxf6 Bxg2 18. Bg7 Bxf1 19. Bxf8 Rxf8 20. Kxf1 e5) 15. dxc3 {[%emt 0:02:21]} Rfd8 {[%emt 0:05:08]} 16. Qc2 {[%emt 0:01:08]} Qf6 {[%emt 0:11:42]} 17. Rfd1 {[%emt 0:01:29]} Na5 {[%emt 0:02:49]} 18. h4 {[%emt 0:04:03]} Kg7 {[%emt 0:04:03]} 19. Rd2 {[%emt 0:06:55]} Bxf3 {[%emt 0:11:07]} 20. Bxf3 {[%emt 0:00:32]} Nc6 {[%emt 0:00:40]} 21. Rcd1 {[%emt 0:01:48]} Rxd2 {[%emt 0:00:22]} 22. Rxd2 {[%emt 0:00:16]} Rd8 {[%emt 0:06:54]} 23. Rxd8 {[%emt 0:01:45]} Nxd8 $11 {[%emt 0:00:06][%mdl 4096] Endgame KQB-KQN} 24. Qe4 {[%emt 0:01:54]} Qd6 {[%emt 0:03:31]} 25. Qa8 {[%emt 0:03:19]} Qc7 {[%emt 0:00:53]} 26. Bd5 {[%emt 0:01:17]} e6 {[%emt 0:03:17]} 27. Bf3 {[%emt 0:03:11]} f5 {[%emt 0:00:40]} 28. Kg2 {[%emt 0:05:54]} Nf7 {[%emt 0:01:59]} 29. b4 {[%emt 0:01:38]} cxb4 {[%emt 0:08:53]} 30. cxb4 {[%emt 0:00:03]} Ne5 {[%emt 0:00:29]} 31. Qe8 {[%emt 0:02:20]} Nxf3 {[%emt 0:00:34]} 32. exf3 {[%emt 0:00:07] KQ-KQ} Qd6 {[%emt 0:02:03]} 33. b5 {[%emt 0:00:59]} h6 {[%emt 0:01:47]} 34. a4 {[%emt 0:02:14]} h5 {[%emt 0:00:25]} 35. Qc6 {[%emt 0:03:58]} Qe7 {[%emt 0:00:14]} 36. Qc3+ {[%emt 0:00:26]} Kf7 {[%emt 0:00:42]} 37. Qe5 {[%emt 0:00:54]} Qf6 {[%emt 0:01:14]} 38. Qc7+ {[%emt 0:02:45]} Qe7 {[%emt 0:00:08]} 39. Qe5 {[%emt 0:00:03]} Qf6 {[%emt 0:00:04]} 40. Qb8 {[%emt 0:00:00]} Qe7 {[%emt 0:00:00]} 41. Qc8 {[%emt 0:04:31]} e5 {[%emt 0:05:05]} 42. Kg1 {[%emt 0:05:10]} Qe6 {[%emt 0:01:17]} 43. Qh8 {[%emt 0:02:15] Strongly threatening Qh7+.} Qf6 {[%emt 0:01:18]} 44. Qa8 {[%emt 0:00:40]} Qe7 {[%emt 0:00:11]} 45. Qb8 {[%emt 0:00:13]} Kf6 {[%emt 0:02:45]} 46. Kf1 {[%emt 0:00:12]} Qd7 {[%emt 0:01:23]} 47. Qh8+ {[%emt 0:00:50]} Ke6 {[%emt 0:00:29]} 48. Kg2 {[%emt 0:00:38]} Qe7 {[%emt 0:02:41]} 49. Qc8+ {[%emt 0:03:23] Weighted Error Value: White=0.04 (flawless) /Black=0.04 (flawless)} 1/2-1/2